[Event "*** Titled Tuesday Blitz"]
[Site "Chess.com"]
[Date "2019.01.01"]
[Round "1"]
[White "Pakarma"]
[Black "Firouzja2003"]
[Result "0-1"]
[WhiteElo "2465"]
[BlackElo "2993"]
[TimeControl "180+2"]
[EndTime "13:08:39 PST"]
[Termination "Firouzja2003 won by checkmate"]

1. e4 {[%clk 0:03:00.8]} 1... e5 {[%clk 0:03:00.4]} 2. Nc3 {[%clk 0:03:00.6]}
2... Nc6 {[%clk 0:03:00.9]} 3. Bc4 {[%clk 0:03:01.1]} 3... Nf6 {[%clk
0:03:01.5]} 4. d3 {[%clk 0:03:02.4]} 4... Na5 {[%clk 0:03:02.7]} 5. Qf3 {[%clk
0:03:02.7]} 5... Nxc4 {[%clk 0:03:03.6]} 6. dxc4 {[%clk 0:03:04.6]} 6... Bc5
{[%clk 0:03:05.3]} 7. Nge2 {[%clk 0:03:03.3]} 7... h6 {[%clk 0:03:06.3]} 8. Be3
{[%clk 0:03:00.1]} 8... Bxe3 {[%clk 0:03:06.7]} 9. Qxe3 {[%clk 0:03:02]} 9... d6
{[%clk 0:03:07.3]} 10. h3 {[%clk 0:02:59.8]} 10... Be6 {[%clk 0:03:02.2]} 11. b3
{[%clk 0:03:00.8]} 11... c6 {[%clk 0:03:01.2]} 12. Rd1 {[%clk 0:02:56.1]} 12...
Qe7 {[%clk 0:03:01.8]} 13. O-O {[%clk 0:02:56.6]} 13... O-O {[%clk 0:03:02.2]}
14. Rd2 {[%clk 0:02:54]} 14... Rfd8 {[%clk 0:03:03]} 15. Rfd1 {[%clk 0:02:55]}
15... b6 {[%clk 0:03:04.4]} 16. Ng3 {[%clk 0:02:47]} 16... Rd7 {[%clk
0:03:01.3]} 17. Qf3 {[%clk 0:02:35.5]} 17... g6 {[%clk 0:03:00.7]} 18. Nf1
{[%clk 0:02:26.5]} 18... Kg7 {[%clk 0:02:58.7]} 19. Ne3 {[%clk 0:02:26.4]} 19...
Nh7 {[%clk 0:02:58.3]} 20. Qg3 {[%clk 0:02:23.3]} 20... Kf8 {[%clk 0:02:35.1]}
21. Kh2 {[%clk 0:02:18.5]} 21... Rad8 {[%clk 0:02:35.2]} 22. f4 {[%clk
0:02:08.5]} 22... exf4 {[%clk 0:02:33.8]} 23. Qxf4 {[%clk 0:02:10.4]} 23... Qg5
{[%clk 0:02:32.6]} 24. g3 {[%clk 0:02:10.7]} 24... Ke7 {[%clk 0:02:30.3]} 25.
Rf2 {[%clk 0:02:01.9]} 25... Qe5 {[%clk 0:02:08.9]} 26. Rd3 {[%clk 0:01:42]}
26... h5 {[%clk 0:02:03.7]} 27. Rfd2 {[%clk 0:01:35.4]} 27... Nf6 {[%clk
0:02:03.2]} 28. Kg2 {[%clk 0:01:22.2]} 28... h4 {[%clk 0:01:48.8]} 29. Qxe5
{[%clk 0:01:15.1]} 29... dxe5 {[%clk 0:01:49.5]} 30. Rxd7+ {[%clk 0:01:16]}
30... Nxd7 {[%clk 0:01:51.4]} 31. gxh4 {[%clk 0:01:15.5]} 31... Rh8 {[%clk
0:01:52.1]} 32. Kg3 {[%clk 0:01:16]} 32... Nf6 {[%clk 0:01:53.4]} 33. Ng2 {[%clk
0:00:41]} 33... Nh5+ {[%clk 0:01:50.8]} 34. Kh2 {[%clk 0:00:40.2]} 34... Nf4
{[%clk 0:01:52.7]} 35. Kg3 {[%clk 0:00:41.3]} 35... Nxh3 {[%clk 0:01:51.2]} 36.
Ne2 {[%clk 0:00:37.8]} 36... g5 {[%clk 0:01:52.3]} 37. c5 {[%clk 0:00:33.9]}
37... bxc5 {[%clk 0:01:52.7]} 38. Rd1 {[%clk 0:00:28.1]} 38... Nf4 {[%clk
0:01:49.9]} 39. Nexf4 {[%clk 0:00:27.9]} 39... gxf4+ {[%clk 0:01:46.5]} 40. Kf2
{[%clk 0:00:29]} 40... f5 {[%clk 0:01:47.8]} 41. exf5 {[%clk 0:00:28.9]} 41...
Bxf5 {[%clk 0:01:49.7]} 42. c3 {[%clk 0:00:28.9]} 42... Ke6 {[%clk 0:01:47.6]}
43. Re1 {[%clk 0:00:28.2]} 43... Kf6 {[%clk 0:01:48.7]} 44. Rd1 {[%clk
0:00:28.2]} 44... Be4 {[%clk 0:01:49.3]} 45. Rd6+ {[%clk 0:00:28.7]} 45... Kf5
{[%clk 0:01:49.7]} 46. Rd7 {[%clk 0:00:23.1]} 46... Rg8 {[%clk 0:01:50.4]} 47.
Ne1 {[%clk 0:00:23.3]} 47... Rg3 {[%clk 0:01:51.8]} 48. Rf7+ {[%clk 0:00:22.1]}
48... Ke6 {[%clk 0:01:52.8]} 49. Rxa7 {[%clk 0:00:23]} 49... Rxc3 {[%clk
0:01:52.9]} 50. h5 {[%clk 0:00:23.4]} 50... Rh3 {[%clk 0:01:53.7]} 51. Ra5
{[%clk 0:00:23]} 51... Kd6 {[%clk 0:01:54.3]} 52. Ra4 {[%clk 0:00:21]} 52... Bd5
{[%clk 0:01:54.9]} 53. Ra8 {[%clk 0:00:20.7]} 53... Rh2+ {[%clk 0:01:55.4]} 54.
Kf1 {[%clk 0:00:21]} 54... Rh1+ {[%clk 0:01:56.8]} 55. Kf2 {[%clk 0:00:21.7]}
55... e4 {[%clk 0:01:57.7]} 56. Rd8+ {[%clk 0:00:22.8]} 56... Ke7 {[%clk
0:01:58.3]} 57. Rh8 {[%clk 0:00:15.4]} 57... e3+ {[%clk 0:01:59.5]} 58. Ke2
{[%clk 0:00:15.9]} 58... Be4 {[%clk 0:02:00]} 59. Nf3 {[%clk 0:00:16.3]} 59...
Ra1 {[%clk 0:02:00.4]} 60. Ra8 {[%clk 0:00:15.3]} 60... Rb1 {[%clk 0:02:00.8]}
61. Ne1 {[%clk 0:00:15]} 61... Rb2+ {[%clk 0:02:01.8]} 62. Kd1 {[%clk
0:00:16.9]} 62... f3 {[%clk 0:02:02.4]} 63. Kc1 {[%clk 0:00:16.4]} 63... Rb1#
{[%clk 0:02:03.5]} 0-1

[Event "*** Titled Tuesday Blitz"]
[Site "Chess.com"]
[Date "2019.01.01"]
[Round "1"]
[White "S2PAc"]
[Black "fmshawnrl123"]
[Result "0-1"]
[WhiteElo "2855"]
[BlackElo "2479"]
[TimeControl "180+2"]
[EndTime "13:08:39 PST"]
[Termination "fmshawnrl123 won by resignation"]

1. d4 {[%clk 0:03:01.8]} 1... Nf6 {[%clk 0:03:00.6]} 2. g3 {[%clk 0:03:02.9]}
2... e6 {[%clk 0:02:57.1]} 3. Bg2 {[%clk 0:03:01.8]} 3... Be7 {[%clk 0:02:58.6]}
4. Nf3 {[%clk 0:03:03.2]} 4... O-O {[%clk 0:02:59.8]} 5. O-O {[%clk 0:03:04.8]}
5... b6 {[%clk 0:03:01.4]} 6. c4 {[%clk 0:03:00.7]} 6... Bb7 {[%clk 0:03:02.1]}
7. d5 {[%clk 0:02:56.5]} 7... exd5 {[%clk 0:03:02.2]} 8. Nh4 {[%clk 0:02:57.1]}
8... c6 {[%clk 0:03:02.8]} 9. cxd5 {[%clk 0:02:57.8]} 9... Nxd5 {[%clk
0:03:04.7]} 10. Nf5 {[%clk 0:02:59.3]} 10... Nc7 {[%clk 0:03:02.8]} 11. e4
{[%clk 0:03:00]} 11... d5 {[%clk 0:03:03.8]} 12. Nc3 {[%clk 0:03:00.2]} 12...
Bf6 {[%clk 0:03:02.9]} 13. Re1 {[%clk 0:02:44.5]} 13... Nba6 {[%clk 0:02:57.4]}
14. e5 {[%clk 0:02:41.4]} 14... Be7 {[%clk 0:02:55.1]} 15. Bh6 {[%clk
0:02:35.9]} 15... gxh6 {[%clk 0:02:24.3]} 16. Qg4+ {[%clk 0:02:33.2]} 16... Bg5
{[%clk 0:02:25.7]} 17. h4 {[%clk 0:02:33.1]} 17... Kh8 {[%clk 0:02:23.1]} 18.
hxg5 {[%clk 0:02:18.6]} 18... Qxg5 {[%clk 0:02:25]} 19. Qf3 {[%clk 0:02:09.3]}
19... Bc8 {[%clk 0:02:03.3]} 20. Nd6 {[%clk 0:01:59.7]} 20... Be6 {[%clk
0:02:00.6]} 21. a3 {[%clk 0:01:53.6]} 21... Ne8 {[%clk 0:01:52.9]} 22. b4 {[%clk
0:01:41.5]} 22... b5 {[%clk 0:01:31.8]} 23. Nb7 {[%clk 0:01:32.8]} 23... Rb8
{[%clk 0:01:31.3]} 24. Na5 {[%clk 0:01:32.9]} 24... Rc8 {[%clk 0:01:27.2]} 25.
Rac1 {[%clk 0:01:31.9]} 25... Ng7 {[%clk 0:01:20.9]} 26. Ne2 {[%clk 0:01:27.3]}
26... c5 {[%clk 0:01:18.5]} 27. Nf4 {[%clk 0:01:06.5]} 27... cxb4 {[%clk
0:01:01.7]} 28. axb4 {[%clk 0:01:08.4]} 28... Nxb4 {[%clk 0:01:03.6]} 29. Rxc8
{[%clk 0:01:02.8]} 29... Rxc8 {[%clk 0:01:05.5]} 30. Qb3 {[%clk 0:01:02.3]}
30... Nc6 {[%clk 0:00:58.5]} 31. Nxc6 {[%clk 0:01:02.2]} 31... Rxc6 {[%clk
0:01:00.4]} 32. Qxb5 {[%clk 0:01:03.5]} 32... Rc8 {[%clk 0:01:00.7]} 33. Bxd5
{[%clk 0:00:51.9]} 33... Bxd5 {[%clk 0:00:53]} 34. Qxd5 {[%clk 0:00:50.2]} 34...
Qe7 {[%clk 0:00:53]} 35. Ra1 {[%clk 0:00:38.5]} 35... h5 {[%clk 0:00:44]} 36.
Qa5 {[%clk 0:00:38.5]} 36... h4 {[%clk 0:00:39.1]} 37. Qxa7 {[%clk 0:00:38.1]}
37... Qxe5 {[%clk 0:00:38.7]} 38. Qxf7 {[%clk 0:00:39.3]} 38... Qxa1+ {[%clk
0:00:39.3]} 39. Kh2 {[%clk 0:00:39.6]} 39... hxg3+ {[%clk 0:00:39.7]} 40. fxg3
{[%clk 0:00:41.1]} 40... Qb2+ {[%clk 0:00:32.3]} 41. Kh3 {[%clk 0:00:40.2]}
41... Qe5 {[%clk 0:00:23.8]} 42. Qd7 {[%clk 0:00:38.2]} 42... Qf5+ {[%clk
0:00:24]} 43. Qxf5 {[%clk 0:00:40.1]} 43... Nxf5 {[%clk 0:00:25.9]} 44. Kg4
{[%clk 0:00:41]} 44... Nd4 {[%clk 0:00:23]} 45. Nh5 {[%clk 0:00:41.2]} 45...
Rg8+ {[%clk 0:00:22.1]} 46. Kf4 {[%clk 0:00:42.7]} 46... Ne6+ {[%clk 0:00:21.2]}
47. Ke5 {[%clk 0:00:43.9]} 47... Rg5+ {[%clk 0:00:21.9]} 0-1

[Event "*** Titled Tuesday Blitz"]
[Site "Chess.com"]
[Date "2019.01.01"]
[Round "1"]
[White "shnitez"]
[Black "aRk_iN"]
[Result "1-0"]
[WhiteElo "2549"]
[BlackElo "2148"]
[TimeControl "180+2"]
[EndTime "13:08:45 PST"]
[Termination "shnitez won by resignation"]

1. e4 {[%clk 0:03:01.9]} 1... c6 {[%clk 0:02:59.6]} 2. Nc3 {[%clk 0:03:02.1]}
2... d5 {[%clk 0:02:59.8]} 3. Nf3 {[%clk 0:03:03.3]} 3... Bg4 {[%clk 0:03:00.3]}
4. h3 {[%clk 0:03:04]} 4... Bxf3 {[%clk 0:03:01.5]} 5. gxf3 {[%clk 0:03:05.9]}
5... e6 {[%clk 0:03:00.4]} 6. d4 {[%clk 0:03:06.7]} 6... Bb4 {[%clk 0:02:55.3]}
7. Qd3 {[%clk 0:03:04.8]} 7... Nf6 {[%clk 0:02:36.3]} 8. Bd2 {[%clk 0:03:03.4]}
8... Nbd7 {[%clk 0:02:29.5]} 9. Rg1 {[%clk 0:02:57.2]} 9... g6 {[%clk
0:02:25.4]} 10. a3 {[%clk 0:02:57.1]} 10... Be7 {[%clk 0:02:16.7]} 11. O-O-O
{[%clk 0:02:35.3]} 11... b5 {[%clk 0:01:55]} 12. exd5 {[%clk 0:02:34.1]} 12...
cxd5 {[%clk 0:01:47.3]} 13. Nxb5 {[%clk 0:02:00.2]} 13... O-O {[%clk 0:01:42.1]}
14. h4 {[%clk 0:01:53.6]} 14... Kh8 {[%clk 0:00:59.7]} 15. Bh3 {[%clk
0:01:34.6]} 15... Rb8 {[%clk 0:00:47.9]} 16. Bf4 {[%clk 0:01:06]} 16... Rb7
{[%clk 0:00:48.8]} 17. a4 {[%clk 0:00:46.4]} 17... Qb6 {[%clk 0:00:38.8]} 18. b3
{[%clk 0:00:42.1]} 18... a6 {[%clk 0:00:35.6]} 19. Nc3 {[%clk 0:00:36.4]} 19...
Rc8 {[%clk 0:00:34]} 20. Na2 {[%clk 0:00:22.7]} 20... Qc6 {[%clk 0:00:18.2]} 21.
Kd2 {[%clk 0:00:19.1]} 21... a5 {[%clk 0:00:17.7]} 22. Rc1 {[%clk 0:00:18.3]}
22... Ba3 {[%clk 0:00:17.3]} 23. Rb1 {[%clk 0:00:18.9]} 23... Nb6 {[%clk
0:00:16.7]} 24. Qb5 {[%clk 0:00:16.4]} 24... Qxb5 {[%clk 0:00:17.3]} 25. axb5
{[%clk 0:00:17.2]} 25... Nbd7 {[%clk 0:00:18.5]} 26. Bf1 {[%clk 0:00:16.5]}
26... Nh5 {[%clk 0:00:18.1]} 27. Bh2 {[%clk 0:00:15.2]} 27... Be7 {[%clk
0:00:18.2]} 28. Bg3 {[%clk 0:00:14.4]} 28... Bf6 {[%clk 0:00:19.3]} 29. c3
{[%clk 0:00:14.9]} 29... Bg7 {[%clk 0:00:18.1]} 30. Bd3 {[%clk 0:00:15.5]} 30...
Bh6+ {[%clk 0:00:19.2]} 31. Ke2 {[%clk 0:00:15.7]} 31... Nf4+ {[%clk 0:00:20.2]}
32. Bxf4 {[%clk 0:00:17]} 32... Bxf4 {[%clk 0:00:21.4]} 33. c4 {[%clk
0:00:17.6]} 33... dxc4 {[%clk 0:00:18.8]} 34. bxc4 {[%clk 0:00:19.5]} 34... Bh6
{[%clk 0:00:18.6]} 35. c5 {[%clk 0:00:19.9]} 35... Bg7 {[%clk 0:00:19.8]} 36.
Ke3 {[%clk 0:00:21]} 36... Nf6 {[%clk 0:00:19.7]} 37. Be4 {[%clk 0:00:21.8]}
37... Nd5+ {[%clk 0:00:20.3]} 38. Bxd5 {[%clk 0:00:22.7]} 38... exd5 {[%clk
0:00:22.2]} 39. Kd3 {[%clk 0:00:22.8]} 39... Rbc7 {[%clk 0:00:18.9]} 40. Nc3
{[%clk 0:00:22.9]} 40... Bxd4 {[%clk 0:00:17.7]} 41. Kxd4 {[%clk 0:00:24.4]}
41... Rxc5 {[%clk 0:00:19.6]} 42. Nxd5 {[%clk 0:00:23.5]} 42... Rc4+ {[%clk
0:00:20.8]} 43. Kd3 {[%clk 0:00:24.9]} 43... Ra4 {[%clk 0:00:19.6]} 44. b6
{[%clk 0:00:20.3]} 44... Rd8 {[%clk 0:00:20.8]} 45. b7 {[%clk 0:00:21.5]} 45...
Rxd5+ {[%clk 0:00:21.9]} 46. Ke2 {[%clk 0:00:22.2]} 1-0

[Event "*** Titled Tuesday Blitz"]
[Site "Chess.com"]
[Date "2019.01.01"]
[Round "1"]
[White "yildirim2018"]
[Black "aquaticpineapples"]
[Result "0-1"]
[WhiteElo "2489"]
[BlackElo "2098"]
[TimeControl "180+2"]
[EndTime "13:08:45 PST"]
[Termination "aquaticpineapples won by checkmate"]

1. e4 {[%clk 0:03:01.9]} 1... d5 {[%clk 0:02:58.9]} 2. exd5 {[%clk 0:03:02.5]}
2... Qxd5 {[%clk 0:03:00.8]} 3. Nf3 {[%clk 0:03:03.6]} 3... Bg4 {[%clk
0:03:01.2]} 4. Be2 {[%clk 0:03:04.4]} 4... Nc6 {[%clk 0:03:02.3]} 5. h3 {[%clk
0:03:05.9]} 5... Bh5 {[%clk 0:03:01.6]} 6. d4 {[%clk 0:03:07.1]} 6... O-O-O
{[%clk 0:03:01.4]} 7. c4 {[%clk 0:03:07.8]} 7... Qd7 {[%clk 0:02:42.2]} 8. d5
{[%clk 0:03:03.5]} 8... Bxf3 {[%clk 0:02:39.2]} 9. Bxf3 {[%clk 0:03:04]} 9...
Ne5 {[%clk 0:02:39.9]} 10. Be2 {[%clk 0:03:05.2]} 10... e6 {[%clk 0:02:31.1]}
11. Nc3 {[%clk 0:03:06]} 11... Nf6 {[%clk 0:02:27.9]} 12. O-O {[%clk 0:03:05.4]}
12... exd5 {[%clk 0:02:23.3]} 13. f4 {[%clk 0:03:03.9]} 13... Nxc4 {[%clk
0:02:15.6]} 14. Kh2 {[%clk 0:02:55.3]} 14... c6 {[%clk 0:01:58.8]} 15. a4 {[%clk
0:02:53.8]} 15... Bd6 {[%clk 0:01:56.8]} 16. a5 {[%clk 0:02:54.5]} 16... g5
{[%clk 0:01:53.6]} 17. a6 {[%clk 0:02:55]} 17... b6 {[%clk 0:01:49.3]} 18. b3
{[%clk 0:02:54.8]} 18... gxf4 {[%clk 0:01:33.1]} 19. Kh1 {[%clk 0:02:37.9]}
19... Ne3 {[%clk 0:01:32.2]} 20. Bxe3 {[%clk 0:02:38.5]} 20... fxe3 {[%clk
0:01:33.1]} 21. Rxf6 {[%clk 0:02:39.5]} 21... Be5 {[%clk 0:01:34.3]} 22. Bg4
{[%clk 0:02:40.1]} 22... Bxf6 {[%clk 0:01:33.3]} 23. Rc1 {[%clk 0:02:27.4]}
23... Bxc3 {[%clk 0:01:11.6]} 24. Rxc3 {[%clk 0:02:25.8]} 24... f5 {[%clk
0:01:11.3]} 25. Bf3 {[%clk 0:01:27.2]} 25... Kb8 {[%clk 0:01:07.3]} 26. Rxe3
{[%clk 0:01:26.2]} 26... Rhe8 {[%clk 0:01:06.4]} 27. Rc3 {[%clk 0:01:27.1]}
27... Re6 {[%clk 0:00:59.6]} 28. b4 {[%clk 0:01:27]} 28... d4 {[%clk 0:00:55.4]}
29. Rd3 {[%clk 0:01:24.6]} 29... Rde8 {[%clk 0:00:51.3]} 30. Kh2 {[%clk
0:01:22.4]} 30... Qc7+ {[%clk 0:00:45.9]} 31. g3 {[%clk 0:01:22.1]} 31... f4
{[%clk 0:00:43]} 32. Rxd4 {[%clk 0:01:16.9]} 32... fxg3+ {[%clk 0:00:43.3]} 33.
Kg2 {[%clk 0:01:18.3]} 33... R6e7 {[%clk 0:00:27.3]} 34. b5 {[%clk 0:01:13.8]}
34... cxb5 {[%clk 0:00:26.3]} 35. Rd2 {[%clk 0:01:04.2]} 35... Re1 {[%clk
0:00:26.2]} 36. Qb3 {[%clk 0:00:50.1]} 36... Qc5 {[%clk 0:00:23.3]} 37. Kxg3
{[%clk 0:00:22.4]} 37... Rg1+ {[%clk 0:00:24.2]} 38. Kh2 {[%clk 0:00:17]} 38...
Rg7 {[%clk 0:00:21.5]} 39. Qd3 {[%clk 0:00:16.5]} 39... Qg1# {[%clk 0:00:22.3]}
0-1

[Event "*** Titled Tuesday Blitz"]
[Site "Chess.com"]
[Date "2019.01.01"]
[Round "1"]
[White "MikeSailer"]
[Black "Doraemon7"]
[Result "0-1"]
[WhiteElo "2117"]
[BlackElo "2520"]
[TimeControl "180+2"]
[EndTime "13:08:47 PST"]
[Termination "Doraemon7 won by resignation"]

1. b4 {[%clk 0:03:01.8]} 1... d5 {[%clk 0:03:00.1]} 2. Bb2 {[%clk 0:03:02.9]}
2... Bf5 {[%clk 0:03:01.2]} 3. e3 {[%clk 0:03:04]} 3... e6 {[%clk 0:03:02.8]} 4.
Nf3 {[%clk 0:03:05.1]} 4... Nf6 {[%clk 0:03:04.4]} 5. b5 {[%clk 0:03:05.7]} 5...
Be7 {[%clk 0:03:04.6]} 6. Be2 {[%clk 0:03:06.4]} 6... O-O {[%clk 0:03:06]} 7.
O-O {[%clk 0:03:07.4]} 7... h6 {[%clk 0:03:07.4]} 8. a4 {[%clk 0:03:08.3]} 8...
a6 {[%clk 0:03:05.8]} 9. c4 {[%clk 0:03:07.3]} 9... c6 {[%clk 0:03:02.8]} 10. d4
{[%clk 0:03:04.2]} 10... axb5 {[%clk 0:02:51.3]} 11. axb5 {[%clk 0:03:04.1]}
11... Rxa1 {[%clk 0:02:53.2]} 12. Bxa1 {[%clk 0:03:05.3]} 12... cxb5 {[%clk
0:02:50.9]} 13. cxb5 {[%clk 0:02:58]} 13... Nbd7 {[%clk 0:02:51.7]} 14. Nbd2
{[%clk 0:02:51.8]} 14... Qa5 {[%clk 0:02:40]} 15. Ne5 {[%clk 0:02:45.6]} 15...
Rc8 {[%clk 0:02:36.3]} 16. Nxd7 {[%clk 0:02:33.7]} 16... Nxd7 {[%clk 0:02:38.2]}
17. Nf3 {[%clk 0:02:25.3]} 17... Nb6 {[%clk 0:02:27.1]} 18. Ne5 {[%clk
0:02:12.4]} 18... Bc2 {[%clk 0:02:11.8]} 19. Qe1 {[%clk 0:02:06.5]} 19... Bb4
{[%clk 0:02:08.9]} 20. Qc1 {[%clk 0:01:55.6]} 20... Bd3 {[%clk 0:02:00.2]} 21.
Qd1 {[%clk 0:01:35.9]} 21... Bxb5 {[%clk 0:01:55.7]} 22. Bxb5 {[%clk 0:01:30.6]}
22... Qxb5 {[%clk 0:01:57.6]} 23. Qf3 {[%clk 0:01:22.4]} 23... Rc7 {[%clk
0:01:51.7]} 24. h4 {[%clk 0:01:16.7]} 24... Nc4 {[%clk 0:01:45.6]} 25. Nxc4
{[%clk 0:00:54.4]} 25... Qxc4 {[%clk 0:01:47.5]} 26. g4 {[%clk 0:00:49.9]} 26...
Be7 {[%clk 0:01:44.9]} 27. Qg3 {[%clk 0:00:43.8]} 27... b5 {[%clk 0:01:30.1]}
28. Bb2 {[%clk 0:00:44.8]} 28... Rb7 {[%clk 0:00:57.1]} 29. Rc1 {[%clk 0:00:35]}
29... Qe2 {[%clk 0:00:56.7]} 30. Rc8+ {[%clk 0:00:35.6]} 30... Kh7 {[%clk
0:00:56.7]} 31. g5 {[%clk 0:00:31.7]} 31... hxg5 {[%clk 0:00:50.7]} 32. hxg5
{[%clk 0:00:30.5]} 32... Qd1+ {[%clk 0:00:41.2]} 33. Kg2 {[%clk 0:00:24.6]}
33... Qh5 {[%clk 0:00:42.1]} 34. Rc1 {[%clk 0:00:24.5]} 34... Qxg5 {[%clk
0:00:42.1]} 35. Qxg5 {[%clk 0:00:18.2]} 35... Bxg5 {[%clk 0:00:44]} 36. Kg3
{[%clk 0:00:17.1]} 36... Be7 {[%clk 0:00:37.2]} 37. f3 {[%clk 0:00:17.1]} 37...
Bd6+ {[%clk 0:00:35.8]} 38. Kg4 {[%clk 0:00:14.6]} 38... Kg6 {[%clk 0:00:35.5]}
39. e4 {[%clk 0:00:15.1]} 39... Rc7 {[%clk 0:00:36.3]} 40. e5 {[%clk 0:00:09.3]}
40... Rxc1 {[%clk 0:00:33.7]} 41. Bxc1 {[%clk 0:00:10.6]} 41... Bb4 {[%clk
0:00:32.7]} 42. Bb2 {[%clk 0:00:10.7]} 42... Bd2 {[%clk 0:00:32.4]} 43. Ba3
{[%clk 0:00:08.1]} 43... b4 {[%clk 0:00:33.5]} 44. Bb2 {[%clk 0:00:09.3]} 44...
Bc3 {[%clk 0:00:34.9]} 45. Bc1 {[%clk 0:00:11]} 45... b3 {[%clk 0:00:36.2]} 0-1

[Event "*** Titled Tuesday Blitz"]
[Site "Chess.com"]
[Date "2019.01.01"]
[Round "1"]
[White "Chessialist"]
[Black "m3alam"]
[Result "0-1"]
[WhiteElo "2514"]
[BlackElo "2142"]
[TimeControl "180+2"]
[EndTime "13:08:48 PST"]
[Termination "m3alam won by resignation"]

1. e4 {[%clk 0:03:00.8]} 1... c6 {[%clk 0:03:00.7]} 2. d4 {[%clk 0:03:00.6]}
2... d5 {[%clk 0:03:00.9]} 3. Nc3 {[%clk 0:03:01.9]} 3... dxe4 {[%clk
0:03:01.6]} 4. Nxe4 {[%clk 0:03:03]} 4... Bf5 {[%clk 0:03:02.9]} 5. Ng3 {[%clk
0:03:03.5]} 5... Bg6 {[%clk 0:03:04.1]} 6. h4 {[%clk 0:03:04.3]} 6... h6 {[%clk
0:03:04.3]} 7. Nf3 {[%clk 0:03:05.6]} 7... Nd7 {[%clk 0:03:05]} 8. h5 {[%clk
0:03:06.4]} 8... Bh7 {[%clk 0:03:06.4]} 9. Bd3 {[%clk 0:03:08.3]} 9... Bxd3
{[%clk 0:03:07.7]} 10. Qxd3 {[%clk 0:03:10.2]} 10... e6 {[%clk 0:03:09.5]} 11.
Bf4 {[%clk 0:03:10.9]} 11... Qa5+ {[%clk 0:03:10.5]} 12. Bd2 {[%clk 0:03:11.5]}
12... Bb4 {[%clk 0:03:12]} 13. c3 {[%clk 0:03:11.1]} 13... Be7 {[%clk
0:03:12.3]} 14. c4 {[%clk 0:03:09.2]} 14... Qc7 {[%clk 0:03:13.6]} 15. O-O-O
{[%clk 0:03:04.5]} 15... O-O-O {[%clk 0:03:14.3]} 16. Qe2 {[%clk 0:02:58.3]}
16... c5 {[%clk 0:03:12.9]} 17. Bc3 {[%clk 0:02:54.6]} 17... cxd4 {[%clk
0:03:07.1]} 18. Nxd4 {[%clk 0:02:54.6]} 18... a6 {[%clk 0:03:05.8]} 19. Kb1
{[%clk 0:02:48.5]} 19... Ngf6 {[%clk 0:03:02.7]} 20. Ndf5 {[%clk 0:02:28.7]}
20... Bf8 {[%clk 0:02:48.8]} 21. Ne3 {[%clk 0:02:17.1]} 21... Nc5 {[%clk
0:02:40.9]} 22. Rxd8+ {[%clk 0:02:16.2]} 22... Qxd8 {[%clk 0:02:41.4]} 23. Rd1
{[%clk 0:02:15.8]} 23... Qb6 {[%clk 0:02:31.6]} 24. Bd4 {[%clk 0:02:09]} 24...
Qc6 {[%clk 0:02:26.2]} 25. Qc2 {[%clk 0:01:59.4]} 25... Be7 {[%clk 0:02:17.1]}
26. f3 {[%clk 0:01:42.1]} 26... Rd8 {[%clk 0:02:09.4]} 27. Bxf6 {[%clk
0:01:39.2]} 27... Rxd1+ {[%clk 0:02:02.5]} 28. Qxd1 {[%clk 0:01:40.1]} 28...
Bxf6 {[%clk 0:02:03.3]} 29. Ng4 {[%clk 0:01:41.2]} 29... Qd7 {[%clk 0:01:36.1]}
30. Qc2 {[%clk 0:01:11.6]} 30... Bh4 {[%clk 0:01:28.4]} 31. Ne2 {[%clk
0:01:05.7]} 31... f5 {[%clk 0:01:19]} 32. Ne5 {[%clk 0:01:04.8]} 32... Qd6
{[%clk 0:01:12.3]} 33. Ng6 {[%clk 0:01:05.8]} 33... Bf6 {[%clk 0:01:09.9]} 34.
a3 {[%clk 0:01:07.1]} 34... Nd3 {[%clk 0:01:00.7]} 35. Nc3 {[%clk 0:00:57.6]}
35... Ne1 {[%clk 0:00:44.7]} 36. Qe2 {[%clk 0:00:55.9]} 36... Bxc3 {[%clk
0:00:38.4]} 37. bxc3 {[%clk 0:00:57.8]} 37... Qd3+ {[%clk 0:00:39.3]} 38. Qxd3
{[%clk 0:00:56.4]} 38... Nxd3 {[%clk 0:00:41.2]} 39. g3 {[%clk 0:00:49.5]} 39...
Kd8 {[%clk 0:00:33.1]} 40. f4 {[%clk 0:00:48.9]} 40... Nf2 {[%clk 0:00:20.8]}
41. Ne5 {[%clk 0:00:48.5]} 41... Ne4 {[%clk 0:00:21.4]} 42. g4 {[%clk
0:00:49.6]} 42... fxg4 {[%clk 0:00:20.1]} 43. Nxg4 {[%clk 0:00:50.2]} 43...
Nxc3+ {[%clk 0:00:21.3]} 44. Kc2 {[%clk 0:00:51.9]} 44... Ne2 {[%clk 0:00:22.4]}
45. Kd3 {[%clk 0:00:46.7]} 45... Nxf4+ {[%clk 0:00:23.4]} 46. Ke4 {[%clk
0:00:48.6]} 46... Nxh5 {[%clk 0:00:24.6]} 47. Ke5 {[%clk 0:00:50.5]} 47... Ke7
{[%clk 0:00:24.7]} 48. c5 {[%clk 0:00:51.3]} 48... Nf6 {[%clk 0:00:24]} 49. Kd4
{[%clk 0:00:52.3]} 49... Nxg4 {[%clk 0:00:24.5]} 50. a4 {[%clk 0:00:52.9]} 50...
Kd7 {[%clk 0:00:24.6]} 0-1